[Event "*** Titled Tuesday Blitz"]
[Site "Chess.com"]
[Date "2020.05.12"]
[Round "1"]
[White "alexsergeyev"]
[Black "Zurability"]
[Result "1-0"]
[WhiteElo "2358"]
[BlackElo "2656"]
[TimeControl "180+1"]
[EndTime "10:07:03 PDT"]
[Termination "alexsergeyev won by resignation"]

1. c4 {[%clk 0:02:58.4]} 1... e5 {[%clk 0:03:00]} 2. Nc3 {[%clk 0:02:58]} 2...
Nf6 {[%clk 0:02:59.2]} 3. Nf3 {[%clk 0:02:58.1]} 3... Nc6 {[%clk 0:02:58.5]} 4.
d3 {[%clk 0:02:58.2]} 4... Bb4 {[%clk 0:02:54.7]} 5. Bd2 {[%clk 0:02:56.7]} 5...
O-O {[%clk 0:02:54.5]} 6. e3 {[%clk 0:02:54.8]} 6... Re8 {[%clk 0:02:53.9]} 7.
Be2 {[%clk 0:02:54.3]} 7... Bf8 {[%clk 0:02:49.1]} 8. O-O {[%clk 0:02:53.8]}
8... d6 {[%clk 0:02:46.7]} 9. Rc1 {[%clk 0:02:51.4]} 9... Bf5 {[%clk 0:02:45.9]}
10. e4 {[%clk 0:02:49.3]} 10... Bg4 {[%clk 0:02:44.4]} 11. Nd5 {[%clk
0:02:48.3]} 11... Nd7 {[%clk 0:02:41.8]} 12. Be3 {[%clk 0:02:36.4]} 12... Nc5
{[%clk 0:02:38.2]} 13. Nd2 {[%clk 0:02:25]} 13... Bxe2 {[%clk 0:02:34.4]} 14.
Qxe2 {[%clk 0:02:24.2]} 14... Nd4 {[%clk 0:02:29.4]} 15. Bxd4 {[%clk 0:02:22.5]}
15... exd4 {[%clk 0:02:29.7]} 16. g3 {[%clk 0:02:14.5]} 16... c6 {[%clk
0:02:25.3]} 17. Nf4 {[%clk 0:02:08.8]} 17... g6 {[%clk 0:02:20.9]} 18. b4 {[%clk
0:01:58.3]} 18... Nd7 {[%clk 0:02:19]} 19. Nb3 {[%clk 0:01:55.5]} 19... Bg7
{[%clk 0:02:16.8]} 20. Qc2 {[%clk 0:01:49.2]} 20... Qb6 {[%clk 0:01:46.2]} 21.
a3 {[%clk 0:01:43.7]} 21... Ne5 {[%clk 0:01:43.2]} 22. Kg2 {[%clk 0:01:39.9]}
22... Nd7 {[%clk 0:01:39.7]} 23. c5 {[%clk 0:01:37.3]} 23... Qa6 {[%clk
0:01:35.2]} 24. cxd6 {[%clk 0:01:33.4]} 24... Qxa3 {[%clk 0:01:33.4]} 25. Nc5
{[%clk 0:01:33.3]} 25... Ne5 {[%clk 0:01:17.9]} 26. Ne2 {[%clk 0:01:13]} 26...
Qxb4 {[%clk 0:01:09.9]} 27. Rb1 {[%clk 0:01:11.3]} 27... Qa3 {[%clk 0:00:54.1]}
28. Ra1 {[%clk 0:01:06.8]} 28... Qb4 {[%clk 0:00:32.3]} 29. Rfb1 {[%clk
0:01:04.4]} 29... Nxd3 {[%clk 0:00:29.1]} 30. Rxb4 {[%clk 0:00:58.8]} 30... Nxb4
{[%clk 0:00:30]} 31. Qb3 {[%clk 0:00:53.7]} 31... a5 {[%clk 0:00:28.1]} 32. d7
{[%clk 0:00:51.8]} 32... Red8 {[%clk 0:00:27.2]} 33. Nxb7 {[%clk 0:00:49.3]}
33... Rxd7 {[%clk 0:00:26.9]} 34. Rxa5 {[%clk 0:00:45.1]} 34... Rxa5 {[%clk
0:00:22.6]} 35. Nxa5 {[%clk 0:00:44.6]} 35... c5 {[%clk 0:00:22.3]} 36. Nc4
{[%clk 0:00:41.7]} 36... d3 {[%clk 0:00:22.7]} 37. Nc3 {[%clk 0:00:36]} 37... d2
{[%clk 0:00:21.7]} 38. Nd1 {[%clk 0:00:35.9]} 38... Rd3 {[%clk 0:00:20.5]} 39.
Qa4 {[%clk 0:00:34.9]} 39... Bd4 {[%clk 0:00:18.4]} 40. Qe8+ {[%clk 0:00:33.2]}
40... Kg7 {[%clk 0:00:18.9]} 41. Nd6 {[%clk 0:00:32.6]} 1-0

[Event "*** Titled Tuesday Blitz"]
[Site "Chess.com"]
[Date "2020.05.12"]
[Round "1"]
[White "GasconJR"]
[Black "chesslh19"]
[Result "0-1"]
[WhiteElo "2506"]
[BlackElo "2189"]
[TimeControl "180+1"]
[EndTime "10:07:03 PDT"]
[Termination "chesslh19 won on time"]

1. d4 {[%clk 0:03:00.9]} 1... Nf6 {[%clk 0:02:58.4]} 2. c4 {[%clk 0:02:52.4]}
2... e6 {[%clk 0:02:58.2]} 3. Nc3 {[%clk 0:02:46.4]} 3... d5 {[%clk 0:02:57.3]}
4. Nf3 {[%clk 0:02:46]} 4... c5 {[%clk 0:02:55.5]} 5. cxd5 {[%clk 0:02:45.6]}
5... cxd4 {[%clk 0:02:54.7]} 6. g3 {[%clk 0:02:46.5]} 6... dxc3 {[%clk
0:02:49.8]} 7. bxc3 {[%clk 0:02:46]} 7... Nxd5 {[%clk 0:02:36.9]} 8. Bd2 {[%clk
0:02:42.8]} 8... Be7 {[%clk 0:02:35.7]} 9. Bg2 {[%clk 0:02:41.8]} 9... O-O
{[%clk 0:02:35.4]} 10. O-O {[%clk 0:02:41.7]} 10... Nc6 {[%clk 0:02:35.5]} 11.
Rb1 {[%clk 0:02:36.3]} 11... Rb8 {[%clk 0:02:07.6]} 12. Qc2 {[%clk 0:02:29.1]}
12... Nf6 {[%clk 0:01:57]} 13. Rfd1 {[%clk 0:02:25.7]} 13... Qa5 {[%clk
0:01:43.9]} 14. c4 {[%clk 0:02:05.9]} 14... Qf5 {[%clk 0:01:39.8]} 15. Qc1
{[%clk 0:01:50.5]} 15... Ne4 {[%clk 0:01:05.6]} 16. Be3 {[%clk 0:01:37.5]} 16...
b6 {[%clk 0:01:00.6]} 17. h3 {[%clk 0:01:26.3]} 17... Bb7 {[%clk 0:00:56.8]} 18.
Rd7 {[%clk 0:01:23.5]} 18... Rfd8 {[%clk 0:00:45.5]} 19. Rxb7 {[%clk 0:01:21.9]}
19... Rxb7 {[%clk 0:00:45.3]} 20. Rb5 {[%clk 0:01:13.7]} 20... Bc5 {[%clk
0:00:31]} 21. g4 {[%clk 0:01:05.3]} 21... Qf6 {[%clk 0:00:27.3]} 22. Rb3 {[%clk
0:01:01.9]} 22... Rbd7 {[%clk 0:00:22]} 23. Qc2 {[%clk 0:00:47.7]} 23... Bxe3
{[%clk 0:00:21.3]} 24. Rxe3 {[%clk 0:00:42.6]} 24... Nc5 {[%clk 0:00:19.4]} 25.
h4 {[%clk 0:00:28.4]} 25... Nd4 {[%clk 0:00:18.8]} 26. Nxd4 {[%clk 0:00:09.1]}
26... Qxd4 {[%clk 0:00:18.5]} 27. Kh2 {[%clk 0:00:03.9]} 27... g6 {[%clk
0:00:15.6]} 28. Rg3 {[%clk 0:00:03.3]} 28... Qd2 {[%clk 0:00:14.5]} 29. Qc1
{[%clk 0:00:02.8]} 29... Qxc1 {[%clk 0:00:14.5]} 0-1

[Event "*** Titled Tuesday Blitz"]
[Site "Chess.com"]
[Date "2020.05.12"]
[Round "1"]
[White "LikeWater"]
[Black "CroissantNeuf"]
[Result "1-0"]
[WhiteElo "2696"]
[BlackElo "2357"]
[TimeControl "180+1"]
[EndTime "10:07:06 PDT"]
[Termination "LikeWater won by resignation"]

1. e4 {[%clk 0:03:00.9]} 1... c6 {[%clk 0:03:00]} 2. Nc3 {[%clk 0:02:58.2]} 2...
d5 {[%clk 0:03:00.9]} 3. Qf3 {[%clk 0:02:58.8]} 3... dxe4 {[%clk 0:02:48.8]} 4.
Nxe4 {[%clk 0:02:57.3]} 4... Nf6 {[%clk 0:02:47.1]} 5. Bc4 {[%clk 0:02:55.1]}
5... Nbd7 {[%clk 0:02:20]} 6. d4 {[%clk 0:02:53.6]} 6... Nb6 {[%clk 0:02:15.1]}
7. Bd3 {[%clk 0:02:33]} 7... Qxd4 {[%clk 0:02:02.6]} 8. Ne2 {[%clk 0:02:33.2]}
8... Qd8 {[%clk 0:01:55.4]} 9. Bg5 {[%clk 0:02:25.5]} 9... Nxe4 {[%clk
0:01:47.7]} 10. Bxe4 {[%clk 0:02:13.9]} 10... Be6 {[%clk 0:01:27.6]} 11. Rd1
{[%clk 0:02:03.5]} 11... Bd5 {[%clk 0:01:20.9]} 12. c4 {[%clk 0:01:34.3]} 12...
Nxc4 {[%clk 0:01:16.7]} 13. Bxd5 {[%clk 0:01:34.6]} 13... Qa5+ {[%clk
0:00:39.4]} 14. b4 {[%clk 0:01:34.8]} 14... Qxb4+ {[%clk 0:00:39.1]} 15. Bd2
{[%clk 0:01:35]} 15... Nxd2 {[%clk 0:00:37.5]} 16. Bxc6+ {[%clk 0:01:08.7]}
16... Kd8 {[%clk 0:00:28.9]} 17. Rxd2+ {[%clk 0:01:05.9]} 17... Qxd2+ {[%clk
0:00:23.5]} 18. Kxd2 {[%clk 0:01:05.3]} 18... bxc6 {[%clk 0:00:24.4]} 19. Qxc6
{[%clk 0:00:55.5]} 19... Rc8 {[%clk 0:00:23.9]} 20. Qd5+ {[%clk 0:00:51.1]}
20... Ke8 {[%clk 0:00:22.8]} 21. Qb5+ {[%clk 0:00:46.3]} 21... Kd8 {[%clk
0:00:22.6]} 22. Nd4 {[%clk 0:00:44.4]} 22... e6 {[%clk 0:00:15.7]} 23. Nc6+
{[%clk 0:00:40.4]} 23... Kc7 {[%clk 0:00:08.5]} 24. Rc1 {[%clk 0:00:31.5]} 24...
Ba3 {[%clk 0:00:07.9]} 25. Qa5+ {[%clk 0:00:30.5]} 25... Kd7 {[%clk 0:00:07.2]}
26. Ne5+ {[%clk 0:00:18.6]} 26... Kd6 {[%clk 0:00:03.8]} 27. Nxf7+ {[%clk
0:00:17.1]} 27... Ke7 {[%clk 0:00:04.2]} 28. Qxa7+ {[%clk 0:00:14.4]} 28... Kf6
{[%clk 0:00:02.8]} 29. Rxc8 {[%clk 0:00:12.9]} 29... Rxc8 {[%clk 0:00:02.2]} 30.
Qxa3 {[%clk 0:00:12.5]} 30... Kxf7 {[%clk 0:00:01.7]} 31. Qa7+ {[%clk
0:00:12.2]} 1-0

[Event "*** Titled Tuesday Blitz"]
[Site "Chess.com"]
[Date "2020.05.12"]
[Round "1"]
[White "RATNAKARAN"]
[Black "LivajaM"]
[Result "1-0"]
[WhiteElo "2582"]
[BlackElo "2261"]
[TimeControl "180+1"]
[EndTime "10:07:06 PDT"]
[Termination "RATNAKARAN won on time"]

1. e4 {[%clk 0:03:00.9]} 1... c5 {[%clk 0:02:59.7]} 2. Nf3 {[%clk 0:03:00.7]}
2... Nc6 {[%clk 0:02:59.7]} 3. Bb5 {[%clk 0:02:59.9]} 3... g6 {[%clk 0:02:58.4]}
4. O-O {[%clk 0:02:59.9]} 4... Bg7 {[%clk 0:02:58.5]} 5. Re1 {[%clk 0:03:00.3]}
5... e5 {[%clk 0:02:58.3]} 6. c3 {[%clk 0:03:00.3]} 6... a6 {[%clk 0:02:57.3]}
7. Bxc6 {[%clk 0:03:00.2]} 7... dxc6 {[%clk 0:02:57.1]} 8. h3 {[%clk 0:02:59.6]}
8... Qc7 {[%clk 0:02:47.5]} 9. d3 {[%clk 0:02:59.7]} 9... Nf6 {[%clk 0:02:46.8]}
10. a4 {[%clk 0:02:59.4]} 10... O-O {[%clk 0:02:40.3]} 11. a5 {[%clk 0:02:59.7]}
11... Re8 {[%clk 0:02:39.5]} 12. Be3 {[%clk 0:02:59.1]} 12... Qe7 {[%clk
0:02:36.2]} 13. Nbd2 {[%clk 0:02:58.4]} 13... h6 {[%clk 0:02:22.2]} 14. Nc4
{[%clk 0:02:48.3]} 14... Nh5 {[%clk 0:02:17.4]} 15. Qd2 {[%clk 0:02:42.2]} 15...
Kh7 {[%clk 0:02:16.5]} 16. Ra4 {[%clk 0:02:36.9]} 16... Rb8 {[%clk 0:02:00.7]}
17. Rea1 {[%clk 0:02:30.8]} 17... g5 {[%clk 0:01:58.7]} 18. Ne1 {[%clk
0:02:22.1]} 18... Nf4 {[%clk 0:01:57.7]} 19. f3 {[%clk 0:02:20.2]} 19... Be6
{[%clk 0:01:55.6]} 20. Qf2 {[%clk 0:02:15.2]} 20... Bf8 {[%clk 0:01:44.5]} 21.
Kh2 {[%clk 0:02:12.8]} 21... f6 {[%clk 0:01:41.5]} 22. Rd1 {[%clk 0:02:00]}
22... Red8 {[%clk 0:01:40.5]} 23. Rd2 {[%clk 0:01:58.6]} 23... Rd7 {[%clk
0:01:37.6]} 24. Nb6 {[%clk 0:01:58.3]} 24... Rdd8 {[%clk 0:01:33.7]} 25. Ra1
{[%clk 0:01:57.9]} 25... Bb3 {[%clk 0:01:25.9]} 26. g3 {[%clk 0:01:57.3]} 26...
Ng6 {[%clk 0:01:17.7]} 27. c4 {[%clk 0:01:53.7]} 27... Qe6 {[%clk 0:00:56.9]}
28. Ra3 {[%clk 0:01:49.6]} 28... Bxc4 {[%clk 0:00:55.5]} 29. dxc4 {[%clk
0:01:46.6]} 29... Rd4 {[%clk 0:00:49.3]} 30. Rad3 {[%clk 0:01:30]} 30... Rbd8
{[%clk 0:00:47]} 31. Bxd4 {[%clk 0:01:21.2]} 31... cxd4 {[%clk 0:00:46.2]} 32.
Nc2 {[%clk 0:01:20.9]} 32... h5 {[%clk 0:00:39.3]} 33. f4 {[%clk 0:01:08.9]}
33... gxf4 {[%clk 0:00:35]} 34. gxf4 {[%clk 0:01:08.6]} 34... Nxf4 {[%clk
0:00:34.9]} 35. Nxd4 {[%clk 0:01:05.9]} 35... Rxd4 {[%clk 0:00:29.1]} 36. Rxd4
{[%clk 0:01:05.6]} 36... Qxh3+ {[%clk 0:00:28.6]} 37. Kg1 {[%clk 0:01:05.4]}
37... Qg4+ {[%clk 0:00:17]} 38. Kf1 {[%clk 0:01:01.5]} 38... Bc5 {[%clk
0:00:15.1]} 39. Rd7+ {[%clk 0:01:00.6]} 39... Kg6 {[%clk 0:00:13.3]} 40. Qxc5
{[%clk 0:01:00.1]} 40... Qf3+ {[%clk 0:00:10.3]} 41. Qf2 {[%clk 0:00:56.1]}
41... Qh3+ {[%clk 0:00:09.8]} 42. Ke1 {[%clk 0:00:55.1]} 42... Qh1+ {[%clk
0:00:09]} 43. Qf1 {[%clk 0:00:55.2]} 43... Qxe4+ {[%clk 0:00:09]} 44. Re2 {[%clk
0:00:53.5]} 44... Qb1+ {[%clk 0:00:03]} 45. Rd1 {[%clk 0:00:52.6]} 1-0

[Event "*** Titled Tuesday Blitz"]
[Site "Chess.com"]
[Date "2020.05.12"]
[Round "1"]
[White "AnkitGajwa"]
[Black "GadimbayliA"]
[Result "0-1"]
[WhiteElo "2433"]
[BlackElo "2841"]
[TimeControl "180+1"]
[EndTime "10:07:09 PDT"]
[Termination "GadimbayliA won by resignation"]

1. e4 {[%clk 0:03:00.9]} 1... e5 {[%clk 0:03:00]} 2. Nf3 {[%clk 0:03:01]} 2...
d5 {[%clk 0:02:59.4]} 3. exd5 {[%clk 0:02:56.2]} 3... e4 {[%clk 0:03:00.3]} 4.
Nd4 {[%clk 0:02:55.4]} 4... Qxd5 {[%clk 0:02:59.6]} 5. Nb3 {[%clk 0:02:55.5]}
5... Nf6 {[%clk 0:02:58.2]} 6. Nc3 {[%clk 0:02:54.6]} 6... Qe5 {[%clk
0:02:56.3]} 7. Be2 {[%clk 0:02:37]} 7... Bd6 {[%clk 0:02:54.9]} 8. d4 {[%clk
0:02:36.6]} 8... exd3 {[%clk 0:02:50.4]} 9. Qxd3 {[%clk 0:02:36.4]} 9... O-O
{[%clk 0:02:50.9]} 10. Be3 {[%clk 0:02:35.7]} 10... Bf5 {[%clk 0:02:45.5]} 11.
Qd2 {[%clk 0:02:35.4]} 11... Nc6 {[%clk 0:02:40.8]} 12. Nd4 {[%clk 0:02:31.5]}
12... Rad8 {[%clk 0:02:30]} 13. f4 {[%clk 0:02:26.5]} 13... Qa5 {[%clk
0:02:22.7]} 14. Nb3 {[%clk 0:02:22.4]} 14... Bb4 {[%clk 0:01:23]} 15. Nxa5
{[%clk 0:02:02.8]} 15... Rxd2 {[%clk 0:01:21.5]} 16. Bxd2 {[%clk 0:01:53.3]}
16... Bxa5 {[%clk 0:01:15.9]} 17. O-O-O {[%clk 0:01:51.5]} 17... Nd4 {[%clk
0:01:12.8]} 18. Bd3 {[%clk 0:01:41.2]} 18... Bxd3 {[%clk 0:01:04.2]} 19. cxd3
{[%clk 0:01:40.9]} 19... Rd8 {[%clk 0:01:05.1]} 20. Ne4 {[%clk 0:01:36.5]} 20...
Ne2+ {[%clk 0:00:39.6]} 21. Kc2 {[%clk 0:01:25.3]} 21... Nd4+ {[%clk 0:00:39.8]}
22. Kb1 {[%clk 0:01:25.2]} 22... Bxd2 {[%clk 0:00:39.9]} 23. Nxf6+ {[%clk
0:01:23.5]} 23... gxf6 {[%clk 0:00:40.8]} 24. Rxd2 {[%clk 0:01:23.9]} 24... Re8
{[%clk 0:00:39]} 25. Kc1 {[%clk 0:01:22.8]} 25... Ne2+ {[%clk 0:00:37.3]} 26.
Kd1 {[%clk 0:01:21.8]} 26... Nxf4 {[%clk 0:00:34.3]} 27. Re1 {[%clk 0:01:19]}
27... Rd8 {[%clk 0:00:31.7]} 28. Re7 {[%clk 0:01:12.7]} 28... Nd5 {[%clk
0:00:31.1]} 29. Re4 {[%clk 0:01:11.4]} 29... f5 {[%clk 0:00:26.8]} 30. Re5
{[%clk 0:01:08.6]} 30... Kg7 {[%clk 0:00:26.1]} 31. Rf2 {[%clk 0:00:59.8]} 31...
f4 {[%clk 0:00:24]} 32. g3 {[%clk 0:00:59.7]} 32... Nb4 {[%clk 0:00:18.6]} 33.
gxf4 {[%clk 0:00:45]} 33... Nxd3 {[%clk 0:00:18.8]} 34. Rg5+ {[%clk 0:00:45]}
34... Kf6 {[%clk 0:00:13.7]} 35. Rd2 {[%clk 0:00:44.8]} 35... Nf2+ {[%clk
0:00:11.6]} 36. Kc2 {[%clk 0:00:41]} 36... Rxd2+ {[%clk 0:00:12.5]} 37. Kxd2
{[%clk 0:00:41.4]} 37... Ne4+ {[%clk 0:00:13.3]} 38. Ke3 {[%clk 0:00:40.9]}
38... Nxg5 {[%clk 0:00:14.2]} 39. fxg5+ {[%clk 0:00:41.2]} 39... Kxg5 {[%clk
0:00:15.1]} 40. Kd4 {[%clk 0:00:42.1]} 40... Kf4 {[%clk 0:00:13.7]} 0-1

[Event "*** Titled Tuesday Blitz"]
[Site "Chess.com"]
[Date "2020.05.12"]
[Round "1"]
[White "igorcadilhac"]
[Black "Arjun2002"]
[Result "0-1"]
[WhiteElo "2332"]
[BlackElo "2657"]
[TimeControl "180+1"]
[EndTime "10:07:12 PDT"]
[Termination "Arjun2002 won by checkmate"]

1. e4 {[%clk 0:03:00.9]} 1... c5 {[%clk 0:02:59.7]} 2. Nf3 {[%clk 0:02:59.2]}
2... Nc6 {[%clk 0:02:59.8]} 3. d4 {[%clk 0:02:58.5]} 3... cxd4 {[%clk
0:03:00.2]} 4. Nxd4 {[%clk 0:02:59.4]} 4... Nf6 {[%clk 0:03:00.4]} 5. Nc3 {[%clk
0:02:58.8]} 5... d6 {[%clk 0:03:00.5]} 6. Bg5 {[%clk 0:02:57.9]} 6... e6 {[%clk
0:03:00.8]} 7. Qd2 {[%clk 0:02:56.2]} 7... a6 {[%clk 0:03:00]} 8. O-O-O {[%clk
0:02:55.6]} 8... Be7 {[%clk 0:03:00.4]} 9. f4 {[%clk 0:02:55.4]} 9... Bd7 {[%clk
0:03:00.3]} 10. Kb1 {[%clk 0:02:50.4]} 10... b5 {[%clk 0:02:54.3]} 11. Qe1
{[%clk 0:02:02.3]} 11... Nxd4 {[%clk 0:02:23.2]} 12. Rxd4 {[%clk 0:02:01.6]}
12... Qb6 {[%clk 0:02:22.9]} 13. Qd2 {[%clk 0:01:40.9]} 13... b4 {[%clk
0:01:48.3]} 14. Nd1 {[%clk 0:01:31]} 14... d5 {[%clk 0:01:44.7]} 15. Bxf6 {[%clk
0:01:28.1]} 15... Bxf6 {[%clk 0:01:27.8]} 16. Rxb4 {[%clk 0:01:27.5]} 16... Qc5
{[%clk 0:01:27.7]} 17. exd5 {[%clk 0:01:18.7]} 17... exd5 {[%clk 0:01:20.9]} 18.
Bd3 {[%clk 0:01:14.3]} 18... O-O {[%clk 0:01:18.6]} 19. Rb7 {[%clk 0:00:49.7]}
19... Bc6 {[%clk 0:01:14.7]} 20. Rb3 {[%clk 0:00:45.2]} 20... d4 {[%clk
0:01:06.7]} 21. Re1 {[%clk 0:00:44.2]} 21... Bd5 {[%clk 0:01:04.7]} 22. Ra3
{[%clk 0:00:40.1]} 22... Rfb8 {[%clk 0:00:57.5]} 23. Ra5 {[%clk 0:00:40.1]}
23... Qc6 {[%clk 0:00:53.8]} 24. g4 {[%clk 0:00:36.3]} 24... Re8 {[%clk
0:00:37.2]} 25. g5 {[%clk 0:00:34.2]} 25... Be7 {[%clk 0:00:35.8]} 26. Qf2
{[%clk 0:00:21.3]} 26... Bb4 {[%clk 0:00:32.5]} 27. Rxe8+ {[%clk 0:00:14.8]}
27... Rxe8 {[%clk 0:00:30.9]} 28. Rxa6 {[%clk 0:00:15]} 28... Qb7 {[%clk
0:00:20.5]} 29. Qh4 {[%clk 0:00:14.8]} 29... g6 {[%clk 0:00:19.3]} 30. Qg4
{[%clk 0:00:09.3]} 30... Re1 {[%clk 0:00:17.5]} 31. Ra4 {[%clk 0:00:07.6]} 31...
Bf3 {[%clk 0:00:16.1]} 32. Rxb4 {[%clk 0:00:04.3]} 32... Bxg4 {[%clk 0:00:15.5]}
33. Rxb7 {[%clk 0:00:03.2]} 33... Rxd1# {[%clk 0:00:15.8]} 0-1

[Event "*** Titled Tuesday Blitz"]
[Site "Chess.com"]
[Date "2020.05.12"]
[Round "1"]
[White "katchesskat"]
[Black "DariaVoit"]
[Result "0-1"]
[WhiteElo "2203"]
[BlackElo "2550"]
[TimeControl "180+1"]
[EndTime "10:07:12 PDT"]
[Termination "DariaVoit won on time"]

1. c4 {[%clk 0:03:00.9]} 1... e5 {[%clk 0:02:59.8]} 2. e3 {[%clk 0:03:00.2]}
2... Nf6 {[%clk 0:02:59.3]} 3. a3 {[%clk 0:03:00.1]} 3... c6 {[%clk 0:02:56.3]}
4. b4 {[%clk 0:02:59.4]} 4... d5 {[%clk 0:02:56.5]} 5. Bb2 {[%clk 0:02:59.6]}
5... Bd6 {[%clk 0:02:54.9]} 6. Qc2 {[%clk 0:02:57.8]} 6... O-O {[%clk
0:02:53.1]} 7. d3 {[%clk 0:02:58.1]} 7... Bf5 {[%clk 0:02:52.3]} 8. Nd2 {[%clk
0:02:58.2]} 8... a5 {[%clk 0:02:49.1]} 9. c5 {[%clk 0:02:58]} 9... Bc7 {[%clk
0:02:48.3]} 10. e4 {[%clk 0:02:58.4]} 10... Bg6 {[%clk 0:02:34.5]} 11. Ngf3
{[%clk 0:02:43.4]} 11... axb4 {[%clk 0:02:33.8]} 12. axb4 {[%clk 0:02:43.1]}
12... Rxa1+ {[%clk 0:02:34.7]} 13. Bxa1 {[%clk 0:02:43.8]} 13... Na6 {[%clk
0:02:34.1]} 14. Qb1 {[%clk 0:02:36.3]} 14... Re8 {[%clk 0:02:25.7]} 15. Be2
{[%clk 0:02:35.6]} 15... Nh5 {[%clk 0:02:22.8]} 16. g3 {[%clk 0:02:31.7]} 16...
f5 {[%clk 0:02:22.1]} 17. O-O {[%clk 0:02:29.5]} 17... fxe4 {[%clk 0:02:19.9]}
18. dxe4 {[%clk 0:02:29.3]} 18... Nf6 {[%clk 0:02:12.3]} 19. Bd3 {[%clk
0:02:17.1]} 19... dxe4 {[%clk 0:02:11.6]} 20. Nxe4 {[%clk 0:02:07.8]} 20... Nd5
{[%clk 0:02:06.4]} 21. b5 {[%clk 0:02:02.6]} 21... cxb5 {[%clk 0:01:58.7]} 22.
Nh4 {[%clk 0:01:57.3]} 22... Bxe4 {[%clk 0:01:39.4]} 23. Bxe4 {[%clk 0:01:54.1]}
23... Nf6 {[%clk 0:01:39.9]} 24. Bxb7 {[%clk 0:01:42.2]} 24... Nxc5 {[%clk
0:01:39.9]} 25. Bc6 {[%clk 0:01:40.8]} 25... Re6 {[%clk 0:01:39.9]} 26. Qxb5
{[%clk 0:01:38.4]} 26... Qd6 {[%clk 0:01:28.5]} 27. Nf5 {[%clk 0:01:28.7]} 27...
Qd3 {[%clk 0:01:18.2]} 28. Nh6+ {[%clk 0:00:34.4]} 28... gxh6 {[%clk 0:01:14.5]}
29. Qxc5 {[%clk 0:00:34.5]} 29... Kg7 {[%clk 0:01:01.4]} 30. Bg2 {[%clk
0:00:33.2]} 30... Bb6 {[%clk 0:00:59.8]} 31. Qc8 {[%clk 0:00:28.9]} 31... Re7
{[%clk 0:00:56.6]} 32. Bb2 {[%clk 0:00:25.2]} 32... Bd4 {[%clk 0:00:52.6]} 33.
Bc1 {[%clk 0:00:24.7]} 33... Rf7 {[%clk 0:00:47.3]} 34. h4 {[%clk 0:00:19.8]}
34... h5 {[%clk 0:00:43.6]} 35. Qe6 {[%clk 0:00:18.1]} 35... Qxg3 {[%clk
0:00:37.2]} 36. Bh6+ {[%clk 0:00:12.3]} 36... Kg6 {[%clk 0:00:26.3]} 0-1

[Event "*** Titled Tuesday Blitz"]
[Site "Chess.com"]
[Date "2020.05.12"]
[Round "1"]
[White "Beca95"]
[Black "Filip_Covic"]
[Result "1-0"]
[WhiteElo "2923"]
[BlackElo "2453"]
[TimeControl "180+1"]
[EndTime "10:07:13 PDT"]
[Termination "Beca95 won by resignation"]

1. c4 {[%clk 0:03:00.5]} 1... g6 {[%clk 0:02:58]} 2. Nc3 {[%clk 0:02:59.9]} 2...
Bg7 {[%clk 0:02:58.4]} 3. d4 {[%clk 0:02:59.9]} 3... c5 {[%clk 0:02:58.4]} 4. d5
{[%clk 0:02:59.2]} 4... Nf6 {[%clk 0:02:58.6]} 5. e4 {[%clk 0:02:58.9]} 5... d6
{[%clk 0:02:59]} 6. Bd3 {[%clk 0:02:58.2]} 6... O-O {[%clk 0:02:59.5]} 7. Nf3
{[%clk 0:02:56.2]} 7... e6 {[%clk 0:02:59.9]} 8. O-O {[%clk 0:02:56.3]} 8...
exd5 {[%clk 0:03:00.4]} 9. exd5 {[%clk 0:02:56.8]} 9... Na6 {[%clk 0:02:59.6]}
10. h3 {[%clk 0:02:55.6]} 10... Nc7 {[%clk 0:02:59.9]} 11. Bf4 {[%clk
0:02:54.5]} 11... Re8 {[%clk 0:02:59.3]} 12. Qd2 {[%clk 0:02:53.9]} 12... a6
{[%clk 0:02:56.9]} 13. a4 {[%clk 0:02:53.2]} 13... b6 {[%clk 0:02:56.4]} 14. Bh2
{[%clk 0:02:26.6]} 14... Nh5 {[%clk 0:02:01.1]} 15. Ne4 {[%clk 0:02:19.7]} 15...
Be5 {[%clk 0:02:01.3]} 16. Nxe5 {[%clk 0:02:17.4]} 16... dxe5 {[%clk 0:02:02.2]}
17. a5 {[%clk 0:02:16.7]} 17... f5 {[%clk 0:01:55.2]} 18. axb6 {[%clk
0:02:15.5]} 18... Nxd5 {[%clk 0:01:47.7]} 19. cxd5 {[%clk 0:02:07.8]} 19... fxe4
{[%clk 0:01:47.7]} 20. Bxe4 {[%clk 0:02:08]} 20... Nf6 {[%clk 0:01:40.6]} 21. d6
{[%clk 0:01:53.5]} 21... Nxe4 {[%clk 0:01:35.5]} 22. Qd5+ {[%clk 0:01:52.8]}
22... Be6 {[%clk 0:01:33.3]} 23. Qxe4 {[%clk 0:01:52.6]} 23... Qxd6 {[%clk
0:01:29.9]} 24. b7 {[%clk 0:01:51.7]} 24... Rad8 {[%clk 0:01:00.4]} 25. Bxe5
{[%clk 0:01:49.5]} 25... Bd5 {[%clk 0:00:54.6]} 26. Bxd6 {[%clk 0:01:45.2]}
26... Bxe4 {[%clk 0:00:55]} 27. b8=Q {[%clk 0:01:44.9]} 27... Rxb8 {[%clk
0:00:55.3]} 28. Bxb8 {[%clk 0:01:44.3]} 28... Rxb8 {[%clk 0:00:56.2]} 29. Rfc1
{[%clk 0:01:43.9]} 29... Bd3 {[%clk 0:00:47.7]} 30. Rxc5 {[%clk 0:01:43.1]}
30... Rxb2 {[%clk 0:00:48.2]} 31. Rc7 {[%clk 0:01:42.9]} 31... Rb1+ {[%clk
0:00:44.9]} 32. Rxb1 {[%clk 0:01:41.3]} 32... Bxb1 {[%clk 0:00:45.8]} 33. f3
{[%clk 0:01:35.7]} 33... Bd3 {[%clk 0:00:45.6]} 34. h4 {[%clk 0:01:35.3]} 34...
Bb5 {[%clk 0:00:43.8]} 35. Ra7 {[%clk 0:01:34.2]} 35... h5 {[%clk 0:00:40.8]}
36. Kf2 {[%clk 0:01:34.4]} 36... Kf8 {[%clk 0:00:40.7]} 37. Ke3 {[%clk
0:01:34.2]} 37... Ke8 {[%clk 0:00:41]} 38. Kf4 {[%clk 0:01:34.2]} 38... Kd8
{[%clk 0:00:41.2]} 39. Kg5 {[%clk 0:01:29.1]} 39... Bd3 {[%clk 0:00:40]} 40. g4
{[%clk 0:01:28.9]} 40... hxg4 {[%clk 0:00:24.8]} 41. fxg4 {[%clk 0:01:29.8]}
41... Kc8 {[%clk 0:00:24.8]} 42. Rf7 {[%clk 0:01:22]} 42... Kb8 {[%clk
0:00:20.4]} 43. h5 {[%clk 0:01:09.9]} 43... gxh5 {[%clk 0:00:21.3]} 44. gxh5
{[%clk 0:01:05.9]} 44... a5 {[%clk 0:00:21.7]} 45. h6 {[%clk 0:01:05.9]} 45...
a4 {[%clk 0:00:22.3]} 46. Rf3 {[%clk 0:01:02.6]} 46... Bc2 {[%clk 0:00:19]} 47.
Ra3 {[%clk 0:01:02.7]} 47... Kc8 {[%clk 0:00:18.3]} 48. Rxa4 {[%clk 0:01:02.1]}
48... Kd8 {[%clk 0:00:17.7]} 49. Rc4 {[%clk 0:01:00.2]} 49... Bb1 {[%clk
0:00:15.6]} 50. Rc1 {[%clk 0:00:58.5]} 50... Be4 {[%clk 0:00:14.8]} 51. Kf6
{[%clk 0:00:57.2]} 51... Ke8 {[%clk 0:00:14.5]} 52. Kg7 {[%clk 0:00:56.9]} 52...
Ke7 {[%clk 0:00:14.2]} 53. Re1 {[%clk 0:00:56.6]} 1-0